bitfinex-derivatives/quotes_ETHF0:USTF0_20250126
["timestamp","ask_amount","ask_price","bid_price","bid_amount"]
[1737901753284,3.8133,3303.5,3303.4,0.61006291]
[1737901758377,3.2078,3303.5,3303.4,0.61006291]
[1737901759490,3.8133,3303.5,3303.4,0.61006291]
[1737901761495,3.8133,3303.5,3303.4,0.00454291]
[1737901786205,4.8484,3303.5,3303.4,0.00454291]
[1737901806320,1.6406,3303.5,3303.4,0.00454291]
[1737901806517,4.8484,3303.5,3303.4,0.00454291]
[1737901808719,3.8133,3303.5,3303.4,0.00454291]
[1737901808922,1.6214,3303.5,3303.4,2.18366291]
[1737901809121,3.81324,3303.9,3303.8,0.60543]
[1737901809515,3.16434,3303.9,3303.8,0.60543]
[1737901812026,2.5589,3303.9,3303.8,0.60543]
[1737901814316,3.2078,3304.2,3303.4,4.78594291]
[1737901814518,0.60542,3304.0,3303.8,0.60544]
[1737901814719,0.60542,3304.0,3303.9,0.7972]
[1737901814918,0.60542,3304.0,3303.9,0.4967]
[1737901818224,0.60549,3303.6,3303.5,0.3005]
[1737901818424,1.51351,3304.1,3303.5,1.4027]
[1737901818727,0.60548,3303.7,3303.5,1.4027]
[1737901820523,0.60548,3303.7,3303.6,0.60549]
[1737901820729,0.60548,3303.7,3303.5,1.40269]
[1737901821225,0.60548,3303.7,3303.6,0.60549]
[1737901830635,0.495,3303.8,3303.5,0.7972]
[1737901830835,1.10046,3303.8,3303.7,0.60547]
[1737901831645,1.10046,3303.8,3303.6,0.60547]
[1737901833043,1.10046,3303.8,3303.7,0.60547]
[1737901833543,0.495,3303.8,3303.7,0.60547]
[1737901835047,0.5009,3303.9,3303.8,0.60545]
[1737901842939,1.0166,3303.9,3303.8,0.60545]
[1737901844248,1.62203,3303.9,3303.8,0.60545]
[1737901844443,0.60545,3303.8,3303.7,0.60546]
[1737901852556,1.0166,3303.9,3303.4,0.00454291]
[1737901852859,1.62205,3303.9,3303.7,0.60545]
[1737901854458,0.60545,3303.8,3303.7,0.60545]
[1737901854658,1.0166,3303.9,3303.6,0.60548]
[1737901854958,0.60546,3303.8,3303.6,0.60548]
[1737901855349,0.60546,3303.8,3303.7,0.60547]
[1737901856555,0.60546,3303.8,3303.6,0.60547]
[1737901856755,0.60545,3303.8,3303.6,0.60547]
[1737901857563,0.60545,3303.8,3303.5,0.6055]
[1737901857862,0.60545,3303.8,3303.6,0.60547]
[1737901860365,0.60547,3303.7,3303.6,0.60547]
[1737901861663,0.60546,3303.8,3303.6,0.60547]
[1737901862565,0.60546,3303.8,3303.4,0.00454291]
[1737901862767,0.60546,3303.8,3303.7,0.60547]
[1737901863769,0.60546,3303.8,3303.6,0.60547]
[1737901864470,0.60547,3303.7,3303.6,0.60547]
[1737901864667,0.60545,3303.8,3303.5,0.60549]
[1737901864867,0.5223,3303.6,3303.5,0.60549]
[1737901868362,0.5223,3303.6,3303.4,0.00454291]
[1737901868363,1.0166,3303.9,3303.8,0.60545]
[1737901868565,0.5009,3303.9,3303.8,0.60545]
[1737901868873,0.5009,3303.9,3303.8,41.40545]
[1737901869372,3.2092095,3304.0,3303.5,0.3003]
[1737901869567,3.2092095,3304.0,3303.9,0.60543]
[1737901869872,3.2092095,3304.0,3303.9,41.40543]
[1737901873572,3.2092095,3304.0,3303.9,0.60543]
[1737901878172,0.0014095,3304.0,3303.9,0.60543]
[1737901881072,1.0066,3304.4,3303.9,5.0]
[1737901881272,0.4894,3304.4,3304.3,0.60536]
[1737901881473,0.5034,3304.8,3304.7,0.60528]
[1737901881670,1.4821,3304.8,3304.7,0.60528]
[1737901882567,0.00454291,3304.9,3304.8,0.60527]
[1737901882766,3.2078,3305.7,3304.7,3.4425]
[1737901882976,3.2078,3305.7,3305.5,0.60513]
[1737901883178,1.5579,3305.6,3305.5,0.60513]
[1737901883377,1.5579,3305.6,3305.2,3.2078]
[1737901883567,0.60515,3305.5,3305.2,3.81299]
[1737901883878,1.5579,3305.6,3305.2,44.0078]
[1737901884084,0.60517,3305.4,3305.2,44.0078]
[1737901884377,0.60517,3305.4,3305.2,3.2078]
[1737901885069,0.60517,3305.3,3305.2,3.2078]
[1737901885470,0.60517,3305.4,3305.2,3.2078]
[1737901887377,1.5579,3305.6,3305.2,3.2078]
[1737901887570,0.60516,3305.4,3305.2,3.2078]
[1737901888679,2.16304,3305.6,3305.2,3.81298]
[1737901888878,2.16304,3305.6,3305.2,3.2078]
[1737901889080,1.5579,3305.6,3305.3,0.60516]
[1737901889480,1.5579,3305.6,3305.2,3.2078]
[1737901889679,1.5579,3305.6,3305.4,0.60515]
[1737901889975,1.5579,3305.6,3305.2,3.2078]
[1737901890178,1.5579,3305.6,3305.5,0.60514]
[1737901890974,1.0368,3305.6,3305.5,0.60514]
[1737901893179,1.0368,3305.6,3305.5,41.40514]
[1737901894182,1.0368,3305.6,3305.5,0.60514]
[1737901895185,0.5092,3305.6,3305.5,0.60514]
[1737901899882,0.00454291,3305.7,3305.6,0.60512]
[1737901900080,0.00454291,3305.7,3305.6,3.81292]
[1737901901282,0.00454291,3305.7,3305.6,3.2078]
[1737901901992,0.00454291,3305.7,3305.6,3.81292]
[1737901902493,0.00454291,3305.7,3305.6,0.60512]
[1737901907297,0.00454291,3305.7,3305.5,0.60513]
[1737901907499,0.00454291,3305.7,3305.6,0.60512]
[1737901908496,0.00454291,3305.7,3305.2,3.2078]
[1737901908801,0.00454291,3305.7,3305.3,3.2078]
[1737901908990,0.60965291,3305.7,3305.4,0.60515]
[1737901909187,0.60512,3305.6,3305.4,0.60515]
[1737901909393,0.5263,3305.5,3305.4,0.60515]
[1737901909697,1.0201,3305.5,3305.4,0.60515]
[1737901910390,1.0201,3305.5,3305.4,41.40515]
[1737901911595,1.0201,3305.5,3305.4,0.60515]
[1737901914897,1.62525,3305.5,3305.3,3.2078]
[1737901915098,0.5074,3305.4,3305.3,3.2078]
[1737901916106,0.5074,3305.4,3305.2,0.60518]
[1737901916507,0.5074,3305.4,3305.3,0.60517]
[1737901918906,0.5074,3305.4,3305.2,0.60518]
[1737901919209,0.5074,3305.4,3305.3,0.60517]
[1737901919706,0.5074,3305.4,3305.0,0.61652074]
[1737901919912,0.5074,3305.4,3305.3,0.60517]
[1737901926409,0.5074,3305.4,3305.3,3.81297]
[1737901934624,0.5074,3305.4,3305.3,0.60517]
[1737901935422,0.5074,3305.4,3305.2,0.60518]
[1737901936627,0.5074,3305.4,3305.3,0.60517]
[1737901936829,0.5074,3305.4,3305.0,0.61652074]
[1737901937326,0.5074,3305.4,3305.2,0.60518]
[1737901939914,0.5074,3305.4,3305.0,0.61652074]
[1737901940121,0.5074,3305.4,3305.3,0.60517]
[1737901940831,1.11256,3305.4,3305.1,0.60521]
[1737901942928,0.60518,3305.3,3305.1,0.60521]
[1737901943518,0.60518,3305.3,3305.0,1.22174074]
[1737901944325,1.11257,3305.4,3305.1,0.60521]
[1737901945026,0.60519,3305.3,3305.0,1.22174074]
[1737901945930,0.6052,3305.2,3305.0,0.61652074]
[1737901946431,1.13201,3305.1,3305.0,0.61652074]
[1737901946630,0.60526,3304.9,3304.6,3.90588261]
[1737901947427,0.60526,3304.9,3304.6,4.51118261]
[1737901948725,0.5206,3305.0,3304.6,3.90588261]
[1737901948933,0.60528,3304.7,3304.6,3.90588261]
[1737901949126,3.81308,3304.7,3304.6,3.90588261]
[1737901949333,0.60532,3304.5,3304.4,12.71654291]
[1737901950023,0.5169,3304.5,3304.4,12.71654291]
[1737901950823,1.12222,3304.5,3304.4,0.00454291]
[1737901982948,3.2078,3304.7,3304.4,0.00454291]
[1737901983255,3.2078,3304.7,3304.6,0.6053]
[1737901985347,0.4937,3305.5,3305.0,0.60522]
[1737901985348,3.2078,3305.1,3305.0,0.60522]
[1737901985951,3.2078,3305.1,3304.9,0.60524]
[1737901986147,3.2078,3305.1,3304.5,1.3114]
[1737901986148,0.60522,3305.1,3304.5,1.3114]
[1737901986343,2.15074,3305.0,3304.7,0.60527]
[1737901986852,1.5455,3305.0,3304.8,0.60526]
[1737901987254,1.5455,3305.0,3304.7,0.60527]
[1737901989639,1.5455,3305.0,3304.6,0.6053]
[1737901989845,1.5455,3305.0,3304.8,0.60526]
[1737901992554,2.15073,3305.0,3304.7,0.60528]
[1737901992752,1.5455,3305.0,3304.5,1.0109]
[1737901992955,0.60525,3304.9,3304.6,0.6053]
[1737901994352,1.5455,3305.0,3304.5,0.4923]
[1737901994751,1.5455,3305.0,3304.9,0.60525]
[1737901995450,1.5455,3305.0,3304.6,0.3003]
[1737901995652,2.15073,3305.0,3304.7,0.60528]
[1737901997449,1.5455,3305.0,3304.5,0.4923]
[1737901997649,0.60525,3304.9,3304.6,0.60529]
[1737901999060,1.5455,3305.0,3304.4,0.00454291]
[1737901999257,0.60529,3304.7,3304.4,0.60987291]
[1737901999556,4.7533,3305.0,3304.4,0.00454291]
[1737901999754,0.5165,3304.6,3304.5,0.60532]
[1737902001160,0.5165,3304.6,3304.4,0.60986291]
[1737902001458,1.0156,3304.5,3304.4,0.60986291]
[1737902008765,0.5165,3304.6,3304.5,0.60532]
[1737902011267,0.509,3304.8,3304.7,0.60528]
[1737902013665,0.4949,3304.9,3304.6,0.4923]
[1737902013864,0.4949,3304.9,3304.8,0.60527]
[1737902029177,1.10015,3304.9,3304.7,0.60527]
[1737902030185,0.4949,3304.9,3304.5,0.4811]
[1737902030387,0.4949,3304.9,3304.8,0.60527]
[1737902038108,0.4949,3304.9,3304.5,0.4811]
[1737902038302,1.10015,3304.9,3304.7,0.60528]
[1737902041606,0.4949,3304.9,3304.8,0.60527]
[1737902045111,1.10015,3304.9,3304.7,0.60527]
[1737902046608,0.4949,3304.9,3304.7,0.60527]
[1737902047810,0.4949,3304.9,3304.8,0.60527]
[1737902048004,0.4949,3304.9,3304.7,0.60527]
[1737902048604,1.10015,3304.9,3304.7,0.60527]
[1737902049408,0.4949,3304.9,3304.7,0.60527]
[1737902049814,1.10015,3304.9,3304.7,0.60527]
[1737902051208,0.4949,3304.9,3304.8,0.60527]
[1737902052808,0.4949,3304.9,3304.7,0.60527]
[1737902053511,0.4949,3304.9,3304.8,0.60527]
[1737902056616,1.10015,3304.9,3304.6,0.6053]
[1737902056814,1.10015,3304.9,3304.4,0.00454291]
[1737902057014,0.4949,3304.9,3304.7,0.60528]
[1737902057314,1.10015,3304.9,3304.7,0.60528]
[1737902060117,0.4949,3304.9,3304.4,0.00454291]
[1737902060524,0.60532,3304.5,3304.4,0.00454291]
[1737902075627,0.60541,3304.0,3303.9,3.2078]
[1737902077532,3.2078,3304.3,3303.6,12.71954291]
[1737902077828,0.60547,3303.7,3303.6,12.71954291]
[1737902078433,0.60547,3303.7,3303.6,0.00454291]
[1737902083828,0.60555,3303.3,3303.0,0.60559]
[1737902084132,0.9872,3303.2,3303.0,0.60559]
[1737902084332,1.4762,3303.2,3303.0,0.60559]
[1737902084734,1.4762,3303.2,3302.7,3.77092366]
[1737902084929,1.4762,3303.2,3303.0,0.60558]
[1737902086036,1.4762,3303.2,3303.1,0.60558]
[1737902086839,1.4762,3303.2,3303.0,0.60559]
[1737902087037,1.4762,3303.2,3302.7,3.77092366]
[1737902087432,0.60558,3303.1,3302.7,4.37656366]
[1737902087938,1.4762,3303.2,3302.7,4.37656366]
[1737902088238,0.60561,3303.0,3302.7,4.37656366]
[1737902089040,0.60558,3303.1,3302.7,3.77092366]
[1737902089241,0.60558,3303.1,3302.8,0.60563]
[1737902090827,0.60558,3303.1,3302.7,3.77092366]
[1737902091032,0.60561,3303.0,3302.7,4.37656366]
[1737902093642,0.60559,3303.1,3302.8,0.60563]
[1737902094846,0.6056,3303.0,3302.7,4.37656366]
[1737902095140,1.4762,3303.2,3302.7,3.77092366]
[1737902095342,1.4762,3303.2,3303.0,0.60559]
[1737902096841,1.4762,3303.2,3302.7,3.77092366]
[1737902097045,2.979,3303.3,3302.7,3.77092366]
[1737902097241,2.979,3303.3,3303.2,0.60556]
[1737902097848,2.979,3303.3,3303.2,1.93246]
[1737902098442,1.5164,3303.8,3303.2,1.3269]
[1737902098637,3.2078,3304.2,3303.7,0.60547]
[1737902098845,2.1428,3304.1,3303.7,0.60547]
[1737902099145,0.60996291,3304.0,3303.7,0.60547]
[1737902100149,0.60996291,3304.0,3303.8,0.60545]
[1737902100545,0.60996291,3304.0,3303.6,0.4828]
[1737902100546,0.00454291,3304.0,3303.6,0.4828]
[1737902100749,0.00454291,3304.0,3303.9,0.60543]
[1737902103660,0.00454291,3304.0,3303.6,0.4828]
[1737902103856,0.00454291,3304.0,3303.5,3.2078]
[1737902104063,0.60544,3303.9,3303.6,0.60547]
[1737902104361,1.62886,3303.8,3303.5,3.8133]
[1737902104961,0.4759,3303.7,3303.5,3.8133]
[1737902109564,0.4759,3303.7,3303.5,0.6055]
[1737902111864,0.4759,3303.7,3303.6,0.60549]
[1737902113864,0.4965,3303.8,3303.6,3.2078]
[1737902114066,0.4965,3303.8,3303.7,0.60547]
[1737902115465,0.00454291,3304.0,3303.9,0.60543]
[1737902122962,0.9841,3304.1,3303.8,0.4968]
[1737902123157,0.9841,3304.1,3304.0,0.60541]
[1737902123472,0.9841,3304.1,3304.0,3.81321]
[1737902123872,0.5256,3304.2,3304.0,3.2078]
[1737902124063,0.5256,3304.2,3304.1,0.60539]
[1737902127573,1.13098,3304.2,3304.0,3.2078]
[1737902129273,0.60539,3304.1,3304.0,2.4147]
[1737902129466,0.60545,3303.8,3303.7,0.00454291]
[1737902129869,3.7334,3304.2,3303.7,0.00454291]
[1737902130175,0.60542,3304.0,3303.7,0.61000291]
[1737902130578,0.4967,3303.9,3303.8,0.60545]
[1737902134383,0.4967,3303.9,3303.7,1.08720291]
[1737902134680,0.4967,3303.9,3303.8,0.60545]
[1737902141184,0.5256,3304.2,3304.1,0.60539]
[1737902143582,3.21234291,3304.4,3303.9,3.2078]
[1737902143783,3.21234291,3304.4,3304.3,0.60536]
[1737902144282,3.21234291,3304.4,3304.3,3.81316]
[1737902144283,0.00454291,3304.4,3304.3,3.81316]
[1737902150586,0.00454291,3304.4,3304.3,3.2078]
[1737902150981,1.52044291,3304.4,3304.3,3.2078]
[1737902151484,0.60538,3304.2,3303.9,0.60543]
[1737902151682,0.60538,3304.2,3303.8,0.60544]
[1737902153480,0.60538,3304.2,3303.9,0.60542]
[1737902154581,0.60536,3304.3,3303.9,0.60542]
[1737902155882,4.72824291,3304.4,3303.9,0.60542]
[1737902156085,0.60538,3304.2,3303.9,0.60542]
[1737902157084,4.72824291,3304.4,3303.7,3.21234291]
[1737902157281,0.60537,3304.3,3303.7,3.21234291]
[1737902157484,0.60537,3304.3,3303.9,0.60541]
[1737902158887,5.33359291,3304.4,3303.8,40.8]
[1737902159086,5.33359291,3304.4,3304.1,0.60539]
[1737902159891,4.72824291,3304.4,3304.2,0.60537]
[1737902160191,5.33359291,3304.4,3304.1,0.60538]
[1737902160779,5.33359291,3304.4,3303.8,40.8]
[1737902160780,0.60536,3304.3,3303.8,40.8]
[1737902160986,0.60536,3304.3,3304.0,0.6054]
[1737902161692,0.60536,3304.3,3304.1,0.60539]
[1737902161888,0.6054,3304.1,3303.8,0.60544]
[1737902162084,0.60544,3303.9,3303.7,3.21234291]
[1737902162279,1.0164,3303.8,3303.7,3.21234291]
[1737902162590,1.5209,3303.8,3303.7,3.21234291]
[1737902165794,1.0316,3303.8,3303.7,3.81781291]
[1737902166396,1.0316,3303.8,3303.7,0.00454291]
[1737902166995,1.0316,3303.8,3303.7,0.61001291]
[1737902168594,1.0316,3303.8,3303.7,0.00454291]
[1737902169493,1.5476,3303.8,3303.7,0.00454291]
[1737902170896,1.5476,3303.8,3303.7,0.61001291]
[1737902171392,1.5476,3303.8,3303.7,0.00454291]
[1737902171895,1.5476,3303.8,3303.7,0.61001291]
[1737902173595,1.5476,3303.8,3303.7,0.00454291]
[1737902174498,1.5476,3303.8,3303.7,0.61001291]
[1737902177102,2.979,3304.3,3303.7,0.00454291]
[1737902177295,0.9921,3304.2,3304.0,0.6054]
[1737902177489,0.9921,3304.2,3303.9,0.5078]
[1737902177692,0.9921,3304.2,3304.0,0.60541]
[1737902178101,0.9921,3304.2,3303.9,0.5078]
[1737902178102,0.9921,3304.2,3304.1,0.60539]
[1737902181402,3.21234291,3304.4,3304.3,0.60536]
[1737902182190,0.00454291,3304.4,3304.3,0.60536]
[1737902183494,0.00454291,3304.4,3304.3,1.10256]
[1737902187506,0.00454291,3304.4,3304.3,0.60536]
[1737902196514,0.00454291,3304.4,3304.3,3.81316]
[1737902206220,0.00454291,3304.4,3304.3,44.61316]
[1737902219134,0.00454291,3304.4,3304.3,3.81316]
[1737902222632,0.9877,3304.8,3304.3,3.2078]
[1737902222940,0.9877,3304.8,3304.6,0.60529]
[1737902224839,0.9877,3304.8,3304.7,0.60528]
[1737902230447,0.9877,3304.8,3304.5,0.6053]
[1737902230743,1.59298,3304.8,3304.3,3.44566056]
[1737902230948,1.59298,3304.8,3304.4,0.60533]
[1737902232049,0.60529,3304.7,3304.3,4.05101056]
[1737902232247,0.4854,3304.6,3304.3,4.05101056]
[1737902232548,0.4854,3304.6,3304.3,3.81315]
[1737902233339,0.4854,3304.6,3304.3,3.2078]
[1737902233540,0.60533,3304.5,3304.3,3.2078]
[1737902233741,0.60534,3304.4,3304.3,3.2078]
[1737902233951,4.32894,3304.4,3303.9,46.14252897]
[1737902234145,0.5241,3304.3,3303.9,46.14252897]
[1737902234649,0.5241,3304.3,3303.9,45.53710897]
[1737902234945,0.60538,3304.2,3303.9,4.73710897]
[1737902235150,0.4931,3304.1,3303.9,4.73710897]
[1737902237048,0.4773,3304.0,3303.9,4.73710897]
[1737902237549,0.4773,3304.0,3303.8,4.15859821]
[1737902238156,0.4773,3304.0,3303.8,3.55314821]
[1737902239454,1.08272,3304.0,3303.8,3.55314821]
[1737902241148,0.4773,3304.0,3303.8,3.55314821]
[1737902242755,0.4773,3304.0,3303.8,0.60544]
[1737902243351,0.4773,3304.0,3303.9,0.60543]
[1737902246052,0.4931,3304.1,3303.7,12.72054291]
[1737902246255,1.0086,3304.3,3304.2,0.60538]
[1737902247054,1.0086,3304.3,3303.9,0.5166]
[1737902247255,1.0086,3304.3,3304.1,0.60538]
[1737902248063,1.0086,3304.3,3303.9,0.60541]
[1737902248258,1.0086,3304.3,3303.8,0.496]
[1737902248458,1.0086,3304.3,3304.1,0.60539]
[1737902248960,1.0086,3304.3,3303.8,0.496]
[1737902249260,1.0086,3304.3,3304.2,0.60538]
[1737902250350,0.5241,3304.3,3304.2,0.60538]
[1737902258268,0.5241,3304.3,3304.0,0.4828]
[1737902258872,1.12947,3304.3,3304.0,0.4828]
[1737902259169,3.81318,3304.2,3303.8,0.496]
[1737902259370,1.1021,3304.1,3303.7,0.00454291]
[1737902259571,1.6257,3304.1,3303.7,0.00454291]
[1737902259768,1.0203,3304.1,3303.7,0.00454291]
[1737902260067,1.6257,3304.1,3303.7,0.00454291]
[1737902261672,0.60542,3304.0,3303.7,0.00454291]
[1737902266469,3.2078,3303.8,3303.7,0.00454291]
[1737902267880,3.2078,3303.8,3303.7,0.61001291]
[1737902270679,3.2078,3303.8,3303.7,0.00454291]
[1737902272284,3.2078,3303.8,3303.7,0.61001291]
[1737902272475,4.2281,3304.1,3303.7,0.61001291]
[1737902275382,4.2281,3304.1,3303.7,0.00454291]
[1737902275582,4.2281,3304.1,3303.8,0.60545]
[1737902276081,1.0203,3304.1,3303.8,0.60545]
[1737902278372,1.0203,3304.1,3303.7,0.00454291]
[1737902278571,1.0203,3304.1,3303.7,0.61000291]
[1737902278775,1.0203,3304.1,3303.8,0.60544]
[1737902279174,1.0203,3304.1,3303.7,0.00454291]
[1737902279373,1.0203,3304.1,3303.9,0.60541]
[1737902279782,1.0203,3304.1,3303.8,0.60544]
[1737902280783,1.0203,3304.1,3303.7,0.60999291]
[1737902280983,1.6257,3304.1,3303.7,0.60999291]
[1737902281188,1.6257,3304.1,3303.7,0.00454291]
[1737902281583,1.6257,3304.1,3303.7,0.61000291]
[1737902282385,1.0203,3304.1,3303.7,0.61000291]
[1737902283983,1.6257,3304.1,3303.7,0.61000291]
[1737902284887,1.0203,3304.1,3303.7,0.00454291]
[1737902285186,1.62571,3304.1,3303.7,0.00454291]
[1737902286284,0.60541,3304.0,3303.7,0.00454291]
[1737902286589,1.62571,3304.1,3303.7,0.00454291]
[1737902288279,0.60541,3304.0,3303.7,0.00454291]
[1737902289578,1.62571,3304.1,3303.7,0.00454291]
[1737902290389,0.60542,3304.0,3303.7,0.00454291]
[1737902290890,1.6257,3304.1,3303.7,0.61000291]
[1737902291189,1.6257,3304.1,3303.7,0.00454291]
[1737902291978,1.0203,3304.1,3303.7,0.00454291]
[1737902292185,0.60545,3303.8,3303.7,0.00454291]
[1737902294989,3.81325,3303.8,3303.7,0.00454291]
[1737902308197,0.60545,3303.8,3303.7,0.00454291]
[1737902308498,3.81325,3303.8,3303.7,0.00454291]
[1737902330209,3.2078,3303.8,3303.7,0.00454291]
[1737902330511,3.2078,3303.8,3303.7,0.61001291]
[1737902330714,2.979,3304.0,3303.7,0.00454291]
[1737902330906,2.979,3304.0,3303.9,0.60543]
[1737902331302,2.979,3304.0,3303.9,1.10503]
[1737902332512,3.7319,3304.3,3303.9,0.4996]
[1737902332715,3.2078,3304.3,3304.2,0.60538]
[1737902335218,4.2096,3304.7,3304.4,0.60533]
[1737902335416,3.7128,3304.7,3304.5,1.61552]
[1737902337219,3.7128,3304.7,3304.5,1.0102]
[1737902337416,3.7128,3304.7,3304.5,1.6155]
[1737902337918,3.7128,3304.7,3304.5,1.0102]
[1737902338120,3.7128,3304.7,3304.6,0.6053]
[1737902340321,3.2078,3304.7,3304.6,0.6053]
[1737902341322,0.00454291,3305.0,3304.7,0.60528]
[1737902344120,3.2078,3304.8,3304.5,1.0102]
[1737902344321,3.81308,3304.8,3304.5,1.61551]
[1737902344516,0.4908,3304.7,3304.5,1.61551]
[1737902344715,0.5114,3304.6,3304.5,1.61551]
[1737902344916,0.5114,3304.6,3304.5,1.0102]
[1737902345117,0.5114,3304.6,3304.3,0.60535]
[1737902345313,0.60533,3304.5,3304.2,3.2078]
[1737902345921,0.60533,3304.5,3304.2,3.81318]
[1737902346116,0.60533,3304.5,3304.2,3.2078]
[1737902350927,0.60533,3304.5,3304.2,3.81318]
[1737902351627,1.11671,3304.6,3304.2,3.81318]
[1737902351928,0.5114,3304.6,3304.2,3.2078]
[1737902352127,0.5114,3304.6,3304.3,0.60535]
[1737902353730,0.5114,3304.6,3304.5,0.60532]
[1737902353929,3.2078,3304.8,3304.7,0.60528]
[1737902356931,3.2078,3304.8,3304.6,1.0852]
[1737902357137,3.2078,3304.8,3304.7,0.60528]
[1737902364439,0.4813,3304.9,3304.8,0.60527]
[1737902368638,0.4813,3304.9,3304.6,0.4799]
[1737902368844,0.4813,3304.9,3304.7,0.60528]
[1737902372545,0.4813,3304.9,3304.8,0.60527]
[1737902377840,0.00454291,3305.0,3304.8,0.60527]
[1737902378142,0.00454291,3305.0,3304.9,0.60525]
[1737902378341,0.00454291,3305.0,3304.9,1.08975]
[1737902384149,0.00454291,3305.0,3304.9,1.33171778]
[1737902394951,4.2117,3305.6,3305.5,0.60514]
[1737902394952,3.7261,3305.6,3305.5,0.60514]
[1737902396251,0.5183,3305.6,3305.5,0.60514]
[1737902401060,0.5183,3305.6,3305.2,3.2078]
[1737902401251,0.5004,3305.5,3305.3,0.60516]
[1737902401653,0.4997,3305.4,3305.3,0.60516]
[1737902402263,0.4997,3305.4,3305.2,3.81298]
[1737902402463,0.4997,3305.4,3305.2,3.2078]
[1737902402659,0.4997,3305.4,3305.3,0.60517]
[1737902404665,0.4997,3305.4,3305.2,3.2078]
[1737902404857,0.4997,3305.4,3305.3,0.60517]
[1737902415170,0.5004,3305.5,3305.2,3.2078]
[1737902415369,0.5004,3305.5,3305.4,0.60516]
[1737902416571,0.5183,3305.6,3305.3,0.9674]
[1737902416769,0.5183,3305.6,3305.5,0.60514]
[1737902426874,0.4805,3305.8,3305.7,0.6051]
[1737902427174,0.48944291,3305.9,3305.8,0.60508]
[1737902427481,0.48944291,3305.9,3305.4,1.51742291]
[1737902427670,0.5166,3305.8,3305.7,0.60509]
[1737902430065,1.0351,3305.8,3305.7,0.60509]
[1737902431177,1.0351,3305.8,3305.4,0.00454291]
[1737902431379,0.6051,3305.7,3305.4,0.00454291]
[1737902435177,1.64019,3305.8,3305.4,0.60970291]
[1737902435776,1.0351,3305.8,3305.4,0.00454291]
[1737902436081,0.60511,3305.7,3305.4,0.00454291]
[1737902436467,1.0351,3305.8,3305.4,0.00454291]
[1737902436672,0.60512,3305.6,3305.4,0.00454291]
[1737902437073,0.60511,3305.7,3305.4,0.00454291]
[1737902443492,1.0351,3305.8,3305.4,0.00454291]
[1737902443787,0.60511,3305.7,3305.4,0.00454291]
[1737902446887,1.64019,3305.8,3305.4,0.60969291]
[1737902447886,1.0351,3305.8,3305.4,0.00454291]
[1737902448191,1.0351,3305.8,3305.7,0.6051]
[1737902460195,1.0351,3305.8,3305.6,0.60511]
[1737902460196,1.64019,3305.8,3305.6,0.60511]
[1737902460796,0.60512,3305.6,3305.4,0.60969291]
[1737902460995,0.5275,3305.5,3305.4,0.60969291]
[1737902461696,0.5275,3305.5,3305.4,0.00454291]
[1737902465900,0.5275,3305.5,3305.4,0.60970291]
[1737902471703,5.32859,3305.8,3305.4,1.13720291]
[1737902473102,2.12079,3305.8,3305.5,0.60514]
[1737902473403,4.7235,3305.8,3305.4,0.53204291]
[1737902473604,4.7235,3305.8,3305.5,0.60514]
[1737902474198,5.32858,3305.8,3305.5,0.60514]
[1737902474998,5.32858,3305.8,3305.4,0.53204291]
[1737902475298,4.7235,3305.8,3305.6,0.60512]
[1737902477600,4.7235,3305.8,3305.4,0.77532406]
[1737902477805,4.7235,3305.8,3305.7,0.6051]
[1737902480698,5.32858,3305.8,3305.7,0.6051]
[1737902481098,4.7235,3305.8,3305.7,0.6051]
[1737902481510,5.32859,3305.8,3305.6,0.60511]
[1737902482512,4.7235,3305.8,3305.4,0.53204291]
[1737902482808,4.7235,3305.8,3305.7,0.6051]
[1737902486409,5.32858,3305.8,3305.7,0.6051]
[1737902487209,4.7235,3305.8,3305.7,0.6051]
[1737902490602,5.32858,3305.8,3305.7,0.6051]
[1737902491107,4.7235,3305.8,3305.7,0.6051]
[1737902493812,5.32858,3305.8,3305.7,0.6051]
[1737902497616,4.7235,3305.8,3305.7,0.6051]
[1737902498812,5.32858,3305.8,3305.7,0.6051]
[1737902506821,4.7235,3305.8,3305.7,0.6051]
[1737902510338,1.5157,3305.8,3305.7,0.6051]
[1737902512337,2.12078,3305.8,3305.4,0.53204291]
[1737902512539,2.12078,3305.8,3305.6,0.60511]
[1737902513631,1.5157,3305.8,3305.5,0.60514]
[1737902513828,1.5157,3305.8,3305.6,0.60511]
[1737902514539,1.5157,3305.8,3305.4,0.53204291]
[1737902514741,1.5157,3305.8,3305.6,0.60511]
[1737902515943,1.5157,3305.8,3305.7,0.5081]
[1737902518639,2.12078,3305.8,3305.7,0.5081]
[1737902521849,1.5157,3305.8,3305.7,0.5081]
[1737902522148,1.5157,3305.8,3305.7,1.1132]
[1737902526150,2.12078,3305.8,3305.7,1.1132]
[1737902526447,1.5157,3305.8,3305.7,1.1132]
[1737902526648,2.12078,3305.8,3305.7,1.1132]
[1737902527349,1.5157,3305.8,3305.7,1.1132]
[1737902530460,2.12078,3305.8,3305.7,1.1132]
[1737902530855,1.5157,3305.8,3305.7,1.1132]
[1737902531958,4.7235,3305.8,3305.7,1.1132]
[1737902533652,5.32858,3305.8,3305.7,1.1132]
[1737902535359,4.7235,3305.8,3305.7,1.1132]
[1737902535659,5.32858,3305.8,3305.7,1.1132]
[1737902536058,5.32858,3305.8,3305.7,0.5081]
[1737902537355,4.7235,3305.8,3305.7,0.5081]
[1737902537555,5.32858,3305.8,3305.7,0.5081]
[1737902538154,2.12078,3305.8,3305.7,0.5081]
[1737902538362,5.32858,3305.8,3305.7,0.5081]
[1737902538761,5.32858,3305.8,3305.6,0.60511]
[1737902539664,3.7263,3305.8,3305.7,0.6051]
[1737902539865,3.2078,3305.8,3305.7,0.6051]